Workbook

Sheet Sheet1 (3)
A1: 深圳市律师协会新执业律师个人会员会费、保险费明细一览表
A2: 一、个人会员会费（对应律师证“发证日期”）：
A3: 发证日期 | B3: 2023-04-01 | C3: 2023-05-01 | D3: 2023-06-01 | E3: 2023-07-01 | F3: 2023-08-01 | G3: 2023-09-01 | H3: 2023-10-01 | I3: 2023-11-01 | J3: 2023-12-01 | K3: 2024-01-01 | L3: 2024-02-01 | M3: 2024-03-01
A4: 省律协会费 | B4: =67*11 -> 737 | C4: =67*10 -> 670 | D4: =67*9 -> 603 | E4: =67*8 -> 536 | F4: =67*7 -> 469 | G4: =67*6 -> 402 | H4: =67*5 -> 335 | I4: =67*4 -> 268 | J4: =67*3 -> 201 | K4: =67*2 -> 134 | L4: =67*1 -> 67 | M4: =67*0 -> 0
A5: 市律协会费 | B5: =100*11 -> 1100 | C5: =100*10 -> 1000 | D5: =100*9 -> 900 | E5: =100*8 -> 800 | F5: =100*7 -> 700 | G5: =100*6 -> 600 | H5: =100*5 -> 500 | I5: =100*4 -> 400 | J5: =100*3 -> 300 | K5: =100*2 -> 200 | L5: =100*1 -> 100 | M5: =100*0 -> 0
A6: 合计 | B6: =SUM(B4:B5) -> 1837 | C6: 1670 | D6: 1503 | E6: 1336 | F6: 1169 | G6: 1002 | H6: 835 | I6: 668 | J6: 501 | K6: 334 | L6: 167 | M6: 0
A8: 发证日期 | B8: 2024-04-01 | C8: 2024-05-01 | D8: 2024-06-01 | E8: 2024-07-01 | F8: 2024-08-01 | G8: 2024-09-01 | H8: 2024-10-01 | I8: 2024-11-01 | J8: 2024-12-01 | K8: 2025-01-01 | L8: 2025-02-01 | M8: 2025-03-01
A9: 省律协会费 | B9: =67*11 -> 737 | C9: =67*10 -> 670 | D9: =67*9 -> 603 | E9: =67*8 -> 536 | F9: =67*7 -> 469 | G9: =67*6 -> 402 | H9: =67*5 -> 335 | I9: =67*4 -> 268 | J9: =67*3 -> 201 | K9: =67*2 -> 134 | L9: =67*1 -> 67 | M9: =67*0 -> 0
A10: 市律协会费 | B10: =100*11 -> 1100 | C10: =100*10 -> 1000 | D10: =100*9 -> 900 | E10: =100*8 -> 800 | F10: =100*7 -> 700 | G10: =100*6 -> 600 | H10: =100*5 -> 500 | I10: =100*4 -> 400 | J10: =100*3 -> 300 | K10: =100*2 -> 200 | L10: =100*1 -> 100 | M10: =100*0 -> 0
A11: 合计 | B11: =SUM(B9:B10) -> 1837 | C11: 1670 | D11: 1503 | E11: 1336 | F11: 1169 | G11: 1002 | H11: 835 | I11: 668 | J11: 501 | K11: 334 | L11: 167 | M11: 0
A12: 二、保险费（对应完成线上投保时间）：
A13: 参保时段 （备案时间*） | B13: 当年4月1日至6月25日 | E13: 6月中/下旬将进行全省统保，请关注深圳律师网通知公告
A14: 执业险 | B14: 30
A15: 意外险 (市律协出资) | B15: 50
A16: 重疾险 (市律协出资) | B16: 40
A17: 提示：统保时间无法进行追溯投保，参保时间以律师完成备案及投保系统确认时间为准，请律师所务必及时在“广东省律师行业投保系统”添加新投保执业律师信息，并提醒律师尽快完成参保人员信息确认工作
